Cogmind - Beta 13 @@@ ROGUE MODE // 2024.03.20 @ 12:50:41 Player: YtnomSnrub Result: Destroyed by S-10 Pest with Light Assault Rifle Performance ------------- Evolutions (1) 500 Regions Visited (3) 600 Robots Destroyed (20) 100 Value Destroyed (290) 290 Prototype IDs (8) 160 Alien Tech Used (0) 0 Bonus (0) 0 TOTAL SCORE: 1650 Bonus ------- None Cogmind --------- Core Integrity 0/400 Matter 300/300 Energy 100/100 System Corruption 0% Temperature Cool (0) Movement Hovering (80) Location -9/Materials Parts ------- > --- POWER (1) -------- (None) > --- PROPULSION (3) --- Combat Airjet > --- UTILITY (3) ------ Signal Interpreter > --- WEAPON (2) ------- (None) > --- INVENTORY (5) ---- Weight Redist. System ECM Suite Shield Generator Particle Gun Peak State ------------ > --- POWER ------------ Improved Ion Engine > --- PROPULSION ------- Combat Airjet Flight Unit Improved Flight Unit > --- UTILITY ---------- Sensor Array Signal Interpreter Hacking Suite > --- WEAPON ----------- Particle Gun > --- INVENTORY -------- Weight Redist. System ECM Suite Shield Generator Particle Gun [Rating: 18] Favorites ----------- Power Light Ion Engine Engine Light Ion Engine Propulsion Flight Unit Leg Aluminum Leg Hover Unit Combat Airjet Flight Unit Flight Unit Utility Seismic Detector Device Seismic Detector Storage Small Storage Unit Processor Signal Interpreter Hackware Hacking Suite Weapon Light Assault Rifle Energy Gun Particle Gun Energy Cannon Beam Cannon Ballistic Gun Light Assault Rifle Build | -11 -10 -10 -9 ------- Run | Yrd Mat Min Mat Slots Evolved 2 | . . . 2 Power . | . . . . Propulsion 1 | . . . 1 Utility 1 | . . . 1 Weapon . | . . . . Parts Attached 32 | 8 12 3 9 Power 4 | 1 2 . 1 Engine 4 | 1 2 . 1 Core . | . . . . Reactor . | . . . . Propulsion 10 | 2 2 2 4 Treads . | . . . . Leg 2 | 2 . . . Wheel . | . . . . Hover 2 | . . . 2 Flight 6 | . 2 2 2 Utility 10 | 3 4 1 2 Device 6 | 2 2 1 1 Storage 2 | 1 1 . . Processor 1 | . . . 1 Hackware 1 | . 1 . . Protection . | . . . . Artifact . | . . . . Weapon 8 | 2 4 . 2 Energy Gun 3 | . 1 . 2 Energy Cannon 3 | . 3 . . Ballistic Gun 2 | 2 . . . Ballistic Cannon . | . . . . Launcher . | . . . . Special Weapon . | . . . . Impact Weapon . | . . . . Slashing Weapon . | . . . . Piercing Weapon . | . . . . Special Melee Weapon . | . . . . Unidentified Prototypes . | . . . . Parts Lost 10 | . . 3 7 Power 1 | . . . 1 Propulsion 5 | . . 2 3 Utility 2 | . . . 2 Weapon 2 | . . 1 1 Highest Loss Streak 7 | . . 3 7 To Critical Strikes . | . . . . Average Slot Usage (%) 85 | . 94 83 71 Engine 12 | . 14 14 8 Leg 6 | . 11 . . Hover 1 | . . . 4 Flight 18 | . 16 20 21 Device 17 | . 23 14 8 Processor 3 | . . . 11 Hackware 5 | . 2 14 8 Energy Gun 4 | . 1 6 7 Energy Cannon 6 | . 7 14 2 Ballistic Gun 7 | . 13 . . Naked Turns . | . . . . Heaviest Build 15 | 10 15 12 11 Greatest Support 20 | 20 20 14 13 Greatest Overweight (x) 2 | . 1 1 2 Average Overweight (x) . | . . . . Largest Inventory Capacity 8 | 8 8 5 5 Average Capacity 5 | 6 5 5 5 Most Carried 7 | 4 7 5 5 Average Carried 4 | 2 4 4 4 Final Capacity 5 | 5 5 5 5 Final Carried 5 | 3 5 5 4 Class Distribution -------------------- 66% | Mutant 33% | Scavenger-Mutant Dominant Class ---------------- Mutant | -10/Materials Mutant | -10/Mines Scavenger-Mutant | -9/Materials Resources | -11 -10 -10 -9 ----------- Run | Yrd Mat Min Mat Matter Collected 523 | 286 133 44 60 Remotely . | . . . . Salvage Created 430 | 40 133 54 203 Parts 36 | 4 14 2 16 Haulers Intercepted 1 | . 1 . . Recyclers Shooed . | . . . . Parts Field Recycled . | . . . . Retrieved Matter . | . . . . Parts Self-Destructed . | . . . . Prevented . | . . . . Kills | -11 -10 -10 -9 ------- Run | Yrd Mat Min Mat Combat Hostiles Destroyed 12 | . 3 3 6 Guns 7 | . 3 . 4 Cannons 3 | . . 3 . AOE 2 | . . . 2 Classes Destroyed 7 | 1 4 . 2 Tunneler 2 | 2 . . . Hauler 1 | . 1 . . Recycler 1 | . . . 1 Operator 2 | . 1 . 1 Watcher 2 | . 1 . 1 Swarmer 11 | . 3 3 5 Grunt 1 | . . . 1 Best Kill Streak 9 | 2 3 3 9 Combat Bots Only 6 | . 3 3 6 Max Kills in Single Turn 3 | 1 1 1 3 Gunslinging . | . . . . Exploded 2 | . . . 2 Melee . | . . . . Uniques/NPCs Destroyed . | . . . . Combat | -11 -10 -10 -9 -------- Run | Yrd Mat Min Mat Hostile Shots Fired 168 | . 23 65 80 Missed 57 | . 11 24 22 Damage Taken 1171 | . 89 348 734 Core 498 | . . 98 400 Absorbed by Shields . | . . . . Core Remaining (%) 80 | 100 . 60 . Volleys Fired 79 | 11 22 16 30 Largest 2 | 2 2 2 1 Hottest 110 | 40 110 110 65 Shots Fired 113 | 22 38 23 30 Gun 87 | 22 29 7 29 Cannon 26 | . 9 16 1 Launcher . | . . . . Special . | . . . . Kinetic 48 | 22 26 . . Thermal 65 | . 12 23 30 Explosive . | . . . . Electromagnetic . | . . . . Robot Hit Streak 7 | 5 7 2 4 Robot Miss Streak 5 | 2 5 4 5 Penetration Max . | . . . . Secondary Targets . | . . . . Shots Hit Robots 52 | 13 17 9 13 Core Hits 30 | 5 9 2 14 Critical Kills . | . . . . Critical Parts Destroyed . | . . . . Critical Strikes . | . . . . Melee Attacks . | . . . . Impact . | . . . . Slashing . | . . . . Piercing . | . . . . Sneak Attacks . | . . . . Combat Hostiles . | . . . . Follow-up Attacks . | . . . . Damage Inflicted 845 | 115 177 161 392 Guns 459 | 115 125 36 183 Cannons 194 | . 52 125 17 Explosions 192 | . . . 192 Melee . | . . . . Ramming . | . . . . Kinetic 240 | 115 125 . . Thermal 413 | . 52 161 200 Explosive . | . . . . Electromagnetic 192 | . . . 192 Impact . | . . . . Slashing . | . . . . Piercing . | . . . . Highest Corruption . | . . . . Average Corruption . | . . . . Corruption Purged . | . . . . Corruption Blocked . | . . . . Overload Shots . | . . . . Overflow Damage 36 | . . 10 26 Projectiles 10 | . . 10 . Explosions 26 | . . . 26 Melee . | . . . . Knockbacks . | . . . . Impact . | . . . . Kinetic . | . . . . Secondary . | . . . . Self-Inflicted Damage 134 | . . . 134 Shots 5 | . . . 5 Rammed 1 | . . . 1 Targets Rammed 1 | . . . 1 Kicked . | . . . . Crushed . | . . . . Highest Temperature 385 | . 175 385 330 Average Temperature 120 | . 60 182 107 Received Heat Transfer 129 | . . . 129 Effects 1 | . . 1 . Shutdowns 1 | . . 1 . Siege Activations . | . . . . Robots Corrupted . | . . . . Combat Hostiles . | . . . . Parts Fried . | . . . . Impact Corruptions . | . . . . Robots Melted . | . . . . Combat Hostiles . | . . . . Parts Melted 1 | . . . 1 Heat Transferred 962 | . 111 370 481 Parts Sabotaged . | . . . . Parts Stolen . | . . . . Parts Stripped . | . . . . Power Chain Reactions 2 | . . . 2 Alert | -11 -10 -10 -9 ------- Run | Yrd Mat Min Mat Peak Influence 401 | 10 173 93 401 Initial 35 | . 6 8 35 Average 87 | 5 73 51 172 Maximum Alert Level 2 | . . . 2 Low Security (%) 90 | 100 100 100 64 Level 1 8 | . . . 30 Level 2 1 | . . . 5 Level 3 . | . . . . Level 4 . | . . . . Level 5 . | . . . . High Security . | . . . . Max Security . | . . . . Squads Dispatched 3 | . 1 . 2 Investigation 2 | . 1 . 1 Extermination . | . . . . Reinforcement 1 | . . . 1 Assault . | . . . . Garrison . | . . . . Intercept . | . . . . Searches Triggered . | . . . . Construction Impeded . | . . . . Haulers Reinforced . | . . . . Active Scanning Responses . | . . . . Cargo Convoy Interrupts . | . . . . Stealth | -11 -10 -10 -9 --------- Run | Yrd Mat Min Mat Distress Signals 6 | . . 1 5 Communications Jammed . | . . . . Distress Signals . | . . . . Times Spotted 49 | . 9 10 30 Peak Tracking Total 16 | . 3 5 16 Tactical Retreats 5 | . . 1 4 Traps | -11 -10 -10 -9 ------- Run | Yrd Mat Min Mat Traps Triggered . | . . . . Indirectly . | . . . . Trap Hack Attempts . | . . . . Triggered . | . . . . Disarmed . | . . . . Reprogrammed . | . . . . Reused . | . . . . Traps Extracted . | . . . . Installed . | . . . . Triggered . | . . . . Machines | -11 -10 -10 -9 ---------- Run | Yrd Mat Min Mat Machines Disabled 6 | . . . 6 Max in Single Turn 4 | . . . 4 Machines Repaired . | . . . . Machines Dismantled . | . . . . Machines Sabotaged . | . . . . Overloaded Fab Kills . | . . . . Hacking | -11 -10 -10 -9 --------- Run | Yrd Mat Min Mat Machines Accessed 8 | . 5 . 3 Terminals 7 | . 4 . 3 Fabricators . | . . . . Repair Stations . | . . . . Recycling Units 1 | . 1 . . Scanalyzers . | . . . . Garrison Access . | . . . . Total Hacks 31 | . 19 . 12 Successful 23 | . 15 . 8 Failed 8 | . 4 . 4 Catastrophic 1 | . 1 . . Database Lockouts . | . . . . Manual 1 | . . . 1 Terminals 28 | . 16 . 12 Fabricators . | . . . . Repair Stations . | . . . . Recycling Units 3 | . 3 . . Scanalyzers . | . . . . Garrison Access . | . . . . Terminal Hacks 20 | . 12 . 8 Record 3 | . 1 . 2 Robot Analysis 1 | . 1 . . Prototype ID Bank 5 | . 3 . 2 Emergency Access Points 2 | . . . 2 Alert Level 1 | . 1 . . Unreport Threat 1 | . . . 1 Locate Traps 1 | . 1 . . Dispatch Records 1 | . 1 . . Transport Status 1 | . 1 . . Hauler Manifests 1 | . 1 . . Registered Components 1 | . . . 1 Registered Prototypes 1 | . 1 . . Zone Layout 1 | . 1 . . Fabricator Hacks . | . . . . Repair Station Hacks . | . . . . Recycling Unit Hacks 3 | . 3 . . Process 1 | . 1 . . Report Inventory 1 | . 1 . . Retrieve Components 1 | . 1 . . Scanalyzer . | . . . . Garrison Access Hacks . | . . . . Unauthorized Hacks . | . . . . Terminals . | . . . . Fabricators . | . . . . Repair Stations . | . . . . Recycling Units . | . . . . Scanalyzers . | . . . . Garrison Access . | . . . . Data Cores Recovered 2 | . 1 . 1 Used 1 | . 1 . . Hacking Detections 6 | . 4 . 2 Full Trace Events 2 | . 1 . 1 Feedback Events . | . . . . Feedback Blocked . | . . . . Robot Schematics Acquired . | . . . . Robots Built . | . . . . Authchips . | . . . . Time . | . . . . Total Robot Build Rating . | . . . . Part Schematics Acquired . | . . . . Parts Built . | . . . . Authchips . | . . . . Time . | . . . . Total Part Build Rating . | . . . . Parts Repaired . | . . . . Time . | . . . . Parts Recycled . | . . . . Recycled Matter . | . . . . Retrieved Matter . | . . . . Retrieved Components 9 | . 9 . . Parts Scanalyzed . | . . . . Part Schematics Acquired . | . . . . Parts Damaged . | . . . . Bothacking | -11 -10 -10 -9 ------------ Run | Yrd Mat Min Mat Used RIF Installer . | . . . . Robots Hacked . | . . . . Non-combat . | . . . . Combat . | . . . . Robot Hacks Applied . | . . . . Relay Couplers Released . | . . . . Fabnet Peak Effective % . | . . . . Robots Rewired . | . . . . Allies Hacked . | . . . . Hacks Repelled . | . . . . Allies | -11 -10 -10 -9 -------- Run | Yrd Mat Min Mat Total Allies . | . . . . Largest Group . | . . . . Highest-Rated Group . | . . . . Highest-Rated Ally . | . . . . Total Orders . | . . . . Ally Attacks . | . . . . Total Damage . | . . . . Kills . | . . . . Allies Corrupted . | . . . . Allies Melted . | . . . . Intel | -11 -10 -10 -9 ------- Run | Yrd Mat Min Mat Robot Analysis Total 1 | . 1 . . Derelict Logs Recovered . | . . . . Drone Launches . | . . . . Drone Recoveries . | . . . . Exploration | -11 -10 -10 -9 ------------- Run | Yrd Mat Min Mat Turns Passed 952 | 167 447 73 265 Spaces Moved 863 | 88 421 44 310 Core 12 | 6 . 6 . Treads . | . . . . Legs 183 | 82 101 . . Wheels . | . . . . Hover 124 | . . . 124 Flight 544 | . 320 38 186 Fastest Speed 34 | 50 37 37 34 Average Speed 65 | 115 66 45 53 Slowest Speed 180 | 120 120 100 180 Overloaded Moves . | . . . . Propulsion Burnouts . | . . . . Robots Hopped 6 | . 2 3 1 Cave-ins Triggered . | . . . . Exploration Rate (%) 24 | 5 51 15 28 Regions Visited 3 Branch Regions 1 Pre-discovered Areas . | . . . . Known Exits Taken . | . . . . Unknown Exits Taken 3 | 1 1 1 . Scrap Searched . | . . . . Spaces Dug . | . . . . Terrain Destroyed 6 | . . . 6 Melee . | . . . . Projectile . | . . . . AOE 6 | . . . 6 Terrain Rammed . | . . . . Walls Destroyed . | . . . . Machines Disabled . | . . . . Actions | -11 -10 -10 -9 --------- Run | Yrd Mat Min Mat Total 1144 | 136 561 70 377 Wait 117 | 19 69 9 20 Move 849 | 87 416 38 308 Hop 5 | . 2 2 1 Pick Up 33 | 10 18 1 4 Fast Attach 8 | . 6 1 1 Attach 16 | 8 3 2 3 Detach 5 | 1 2 1 1 Swap 8 | . 3 . 5 Drop 23 | . 20 . 3 Fire 79 | 11 22 16 30 Melee . | . . . . Ram 1 | . . . 1 Kick . | . . . . Crush . | . . . . Escape Stasis . | . . . . Rewire . | . . . . Trap . | . . . . Miscellaneous . | . . . . Route ------- -11/Scrapyard -10/Materials (discovered 2 exits: *Mat / [*Min]) -10/Mines -9/Materials History --------- Turn | Location | Event 8 | -11/Scrapyard | Discovered new exit (range 15) 168 | -11/Scrapyard | Entered Materials 282 | -10/Materials | Discovered new exit (range 12) 302 | -10/Materials | Build established: Mutant 369 | -10/Materials | Discovered new exit (range 15) 615 | -10/Materials | Entered Mines 616 | -10/Mines | Assembled infested the area 682 | -10/Mines | Discovered new exit (range 5) 684 | -10/Mines | Lost 3 parts (2n1w) 688 | -10/Mines | Entered Materials 688 | -9/Materials | Evolved 2 slots: Propulsion x1, Utility x1 905 | -9/Materials | Core integrity fell below 50% 926 | -9/Materials | Core integrity fell below 20% 935 | -9/Materials | Lost 7 parts (1p3n2u1w) 953 | -9/Materials | Destroyed by S-10 Pest with Light Assault Rifle Last Messages --------------- 00904_ Slammed into Y-45 Defender. 00904_ Particle Gun destroyed. 00904_ Critical hit (Burn: +37). 00907_ K-01 Serf collects debris. 00908_ S-10 Pest destroyed. 00908_ Terminal disabled. 00908_ Y-45 Defender destroyed. 00911_ K-01 Serf collects debris. 00915_ U-05 Engineer lays Concrete. 00915_ K-01 Serf cleans the Terminal. 00918_ R-06 Scavenger collects Corrupted Com. Wheel. 00926_ K-01 Serf collects debris. 00930_ ALERT: Hostiles spotted, dispatching reinforcements to Terminal M008. 00934_ K-01 Serf collects debris. 00936_ M-13 Machinist repairs G-47 Trooper. 00940_ M-13 Machinist fits Backup Laser I on G-47 Trooper. 00951_ K-01 Serf collects debris. Map ----- +----------------------------------------------------+ | ?????????????????????????????????????????????????? | | ?????????????????????????????????????????????????? | | ?????????????????????????????????????????????????? | | ?????????????????????????????????????????????????? | | ??????????? ?????????????????????????????????????? | | ?????????? ????????????????????????????????????? | | ?????? ???" ????????????????????????????????????? | | ?????" """ ????????????????????????????????????? | | ?????" """ ##+#################????????????????? | | ????? # ! #????????????????? | | ????? # #????????????????? | | ?????? # """ """ """ #????????????????? | | ??????? ## """ """ """ #????????????????? | | ????????" " ## """ """ """ #????????????????? | | ? "R" ## #????????????????? | | ? """ #####k##########????????????????? | | #??????????????????????? | | ? #??????????????????????? | | ????????# #??????????????????????? | | ????????######## #??????????????????????? | | ???###########?# #??????????????????????? | | ???# #?# [ #?????#######??????????? | | ???# #?# ####### #??????????? | | ???# * #?# [ #??????????? | | ???# """ #?# T #??????????? | | ???#""" """ #?# @ s #??????????? | | ???#"R """ #?# ##########+### #??????????? | | ???#""" #?# #??# ## ###########?? | | ???# #?# #??# ## # #?? | | ???#####+####### #??# """ ## # #?? | | ????# #??# """ ## + #?? | | ????# #??#" """ ## # #?? | | ????# #??#T # ###########?? | | ????####+###########??#" ## ##??????????? | | ???????# #????# # #??????????? | | ???????# #######+######## #??????????? | | ???????# ! # # ######## T #??????????? | | ???????# # "" + !#??????????? | | ???????# !! # T" # ### #??????????? | | ???????# != #= "" # #####/#####????????? | | ???????# # ?# # #????????? | | ???????# #####?# # """ " #????????? | | ???????###########?????# # """ T #????????? | | ???????????????????????# # """ " #????????? | | ???????????????????????# # #????????? | | ???????????????????????# # #????????? | | ???????????????????????# # #????????? | | ???????????????????????# # #????????? | | ??????????????????###### #####+#####????????? | | ?????????????? # #????????????? | +----------------------------------------------------+ Best States ------------- Heat Dissipation 28 Energy Generation 12 Energy Capacity 265 Matter Stores 300 Matter Capacity 300 Sight Range 16 Robot Scan Range 14 Terrain Scan Range 16 Terrain Scan Density 10 Additional Mass Support 6 Evasion (%) 63 Offensive Hacking 10 Item Schematics ----------------- None Robot Schematics ------------------ None Fabricated ------------ Nothing Alien Tech Used ----------------- None Achievements -------------- None Challenges ------------ None Game ------ Seed SpliceSkeletonRigger Manual? 0 Play Time 00:34:57 Cumulative 18.7 hours Start 2024.03.20 @ 11:54:34 End 2024.03.20 @ 12:50:41 Sessions 1 Manual Loads 0 Difficulty Rogue Special Mode None Game No. 29 Rogue 29 Adventurer 0 Explorer 0 Win Type - Total 0 Types 0/0/0/0/0/0/0/0/0 Lore% 18 Gallery% 27 Achievement% 24 Wizard Run 0 Options --------- Layout 1 ASCII 0 Keyboard 0 Movement Numpad Keybinds 0 Fullscreen 2 Font 32/Tamsyn Map View 50x35 Zoom Use 1% Tactical HUD 1 Map Filters NONE Filters NONE Steam 1 RUN: 2344dd03-bd59-4123-96cd-e752f46cf056